fUST/lending_fUST_20260603
["ID","MTS","AMOUNT","RATE_DAILY","PERIOD"]
[423865236,1780461041000,-501.18206122,0.00013698,2]
[423865157,1780461041000,-501.78640927,0.00013698,2]
[423865137,1780461041000,-500.68947392,0.00013698,2]
[423865138,1780461041000,-500.39160018,0.00013698,2]
[423865135,1780461041000,-500.0,0.00013698,2]
[423865134,1780461041000,-344.47711498,0.00013698,2]
[423865136,1780461041000,-503.69172519,0.00013698,2]
[423865139,1780461041000,-500.0,0.00013698,2]
[423865141,1780461041000,-501.24492162,0.00013698,2]
[423865143,1780461041000,-502.2402102,0.00013698,2]
[423865144,1780461041000,-500.0,0.00013698,2]
[423865142,1780461041000,-500.86570554,0.00013698,2]
[423865140,1780461041000,-521.12884348,0.00013698,2]
[423865148,1780461041000,-501.77312952,0.00013698,2]
[423865149,1780461041000,-502.09657334,0.00013698,2]
[423865156,1780461041000,-500.45622406,0.00013698,2]
[423865151,1780461041000,-501.35875641,0.00013698,2]
[423865147,1780461041000,-500.0,0.00013698,2]
[423865145,1780461041000,-501.42102301,0.00013698,2]
[423865146,1780461041000,-500.0,0.00013698,2]
[423865160,1780461041000,-501.75978161,0.00013698,2]
[423865154,1780461041000,-620.31605566,0.00013698,2]
[423865152,1780461041000,-501.42518439,0.00013698,2]
[423865168,1780461041000,-500.0,0.00013698,2]
[423865162,1780461041000,-500.0,0.00013698,2]
[423865153,1780461041000,-500.0,0.00013698,2]
[423865166,1780461041000,-500.85609991,0.00013698,2]
[423865164,1780461041000,-500.0,0.00013698,2]
[423865158,1780461041000,-502.91374389,0.00013698,2]
[423865155,1780461041000,-502.14588533,0.00013698,2]
[423865150,1780461041000,-500.0,0.00013698,2]
[423865230,1780461041000,-500.0,0.00013698,2]
[423865355,1780461041000,-500.0,0.00013698,2]
[423865234,1780461041000,-500.0,0.00013698,2]
[423865303,1780461041000,-500.0,0.00013698,2]
[423865305,1780461041000,-500.0,0.00013698,2]
[423865307,1780461041000,-500.0,0.00013698,2]
[423865309,1780461041000,-500.0,0.00013698,2]
[423865311,1780461041000,-500.0,0.00013698,2]
[423865312,1780461041000,-500.35115407,0.00013698,2]
[423865314,1780461041000,-500.0,0.00013698,2]
[423865316,1780461041000,-500.60591388,0.00013698,2]
[423865320,1780461041000,-500.0,0.00013698,2]
[423865318,1780461041000,-500.0,0.00013698,2]
[423865322,1780461041000,-500.90143777,0.00013698,2]
[423865326,1780461041000,-423.27323218,0.00013698,2]
[423865328,1780461041000,-500.0,0.00013698,2]
[423865301,1780461041000,-500.0,0.00013698,2]
[423865330,1780461041000,-500.0,0.00013698,2]
[423865334,1780461041000,-501.27267781,0.00013698,2]
[423865339,1780461041000,-500.0,0.00013698,2]
[423865337,1780461041000,-501.66771991,0.00013698,2]
[423865336,1780461041000,-500.0,0.00013698,2]
[423865341,1780461041000,-500.0,0.00013698,2]
[423865343,1780461041000,-500.0,0.00013698,2]
[423865345,1780461041000,-500.0,0.00013698,2]
[423865347,1780461041000,-505.40623171,0.00013698,2]
[423865349,1780461041000,-502.22788105,0.00013698,2]
[423865353,1780461041000,-501.36672873,0.00013698,2]
[423865352,1780461041000,-500.0,0.00013698,2]
[423865357,1780461041000,-506.96077228,0.00013698,2]
[423865238,1780461041000,-500.0,0.00013698,2]
[423865332,1780461041000,-500.0,0.00013698,2]
[423865299,1780461041000,-500.0,0.00013698,2]
[423865324,1780461041000,-500.0,0.00013698,2]
[423865295,1780461041000,-500.0,0.00013698,2]
[423865226,1780461041000,-500.0,0.00013698,2]
[423865297,1780461041000,-507.31796317,0.00013698,2]
[423865240,1780461041000,-500.0,0.00013698,2]
[423865242,1780461041000,-500.80986626,0.00013698,2]
[423865244,1780461041000,-502.08181774,0.00013698,2]
[423865248,1780461041000,-500.0,0.00013698,2]
[423865246,1780461041000,-501.92600097,0.00013698,2]
[423865252,1780461041000,-502.26445821,0.00013698,2]
[423865250,1780461041000,-502.8293421,0.00013698,2]
[423865262,1780461041000,-500.57485899,0.00013698,2]
[423865264,1780461041000,-504.08622931,0.00013698,2]
[423865260,1780461041000,-500.0,0.00013698,2]
[423865266,1780461041000,-500.0,0.00013698,2]
[423865258,1780461041000,-500.5916192,0.00013698,2]
[423865256,1780461041000,-501.80882214,0.00013698,2]
[423865254,1780461041000,-500.0,0.00013698,2]
[423865281,1780461041000,-501.22878854,0.00013698,2]
[423865293,1780461041000,-500.37881113,0.00013698,2]
[423865268,1780461041000,-500.45450201,0.00013698,2]
[423865289,1780461041000,-503.12668728,0.00013698,2]
[423865291,1780461041000,-500.0,0.00013698,2]
[423865279,1780461041000,-500.0,0.00013698,2]
[423865287,1780461041000,-505.7388766,0.00013698,2]
[423865285,1780461041000,-500.95936385,0.00013698,2]
[423865278,1780461041000,-185.035771,0.00013698,2]
[423865276,1780461041000,-507.63361489,0.00013698,2]
[423865274,1780461041000,-174.11140613,0.00013698,2]
[423865272,1780461041000,-500.0,0.00013698,2]
[423865270,1780461041000,-500.0,0.00013698,2]
[423865283,1780461041000,-501.13330581,0.00013698,2]
[423865438,1780461042000,-500.0,0.00013698,2]
[423865460,1780461042000,-500.0,0.00013972,2]
[423865446,1780461042000,-500.0,0.00013698,2]
[423865444,1780461042000,-502.04103393,0.00013698,2]
[423865432,1780461042000,-500.0,0.00013698,2]
[423865434,1780461042000,-500.0,0.00013698,2]
[423865421,1780461042000,-500.40024159,0.00013698,2]
[423865428,1780461042000,-500.0,0.00013698,2]
[423865427,1780461042000,-500.0,0.00013698,2]
[423865436,1780461042000,-500.0,0.00013698,2]
[423865425,1780461042000,-500.0,0.00013698,2]
[423865448,1780461042000,-500.28126543,0.00013698,2]
[423865430,1780461042000,-502.6424227,0.00013698,2]
[423865462,1780461042000,-500.0,0.00013972,2]
[423865479,1780461042000,-500.59283035,0.00013972,2]
[423865467,1780461042000,-500.0,0.00013972,2]
[423865450,1780461042000,-500.0,0.00013972,2]
[423865452,1780461042000,-502.45648542,0.00013972,2]
[423865454,1780461042000,-151.72280326,0.00013972,2]
[423865466,1780461042000,-458.75184128,0.00013972,2]
[423865456,1780461042000,-500.0,0.00013972,2]
[423865469,1780461042000,-500.97527908,0.00013972,2]
[423865458,1780461042000,-500.0,0.00013972,2]
[423865471,1780461042000,-503.67050957,0.00013972,2]
[423865473,1780461042000,-500.54116099,0.00013972,2]
[423865477,1780461042000,-500.0,0.00013972,2]
[423865475,1780461042000,-500.0,0.00013972,2]
[423865484,1780461042000,-500.0,0.00013972,2]
[423865419,1780461042000,-500.0,0.00013698,2]
[423865464,1780461042000,-862.591914,0.00013972,2]
[423865406,1780461042000,-381.98918051,0.00013698,2]
[423865365,1780461042000,-502.24804975,0.00013698,2]
[423865408,1780461042000,-500.0,0.00013698,2]
[423865483,1780461042000,-500.0,0.00013972,2]
[423865361,1780461042000,-503.5506428,0.00013698,2]
[423865359,1780461042000,-501.34792485,0.00013698,2]
[423865363,1780461042000,-500.0,0.00013698,2]
[423865367,1780461042000,-500.0,0.00013698,2]
[423865369,1780461042000,-500.0,0.00013698,2]
[423865370,1780461042000,-500.0,0.00013698,2]
[423865384,1780461042000,-500.0,0.00013698,2]
[423865386,1780461042000,-500.0,0.00013698,2]
[423865372,1780461042000,-500.0,0.00013698,2]
[423865376,1780461042000,-507.11553763,0.00013698,2]
[423865388,1780461042000,-500.0,0.00013698,2]
[423865378,1780461042000,-501.67502121,0.00013698,2]
[423865382,1780461042000,-500.4739346,0.00013698,2]
[423865380,1780461042000,-502.48460795,0.00013698,2]
[423865374,1780461042000,-500.0,0.00013698,2]
[423865390,1780461042000,-500.0,0.00013698,2]
[423865392,1780461042000,-306.61789823,0.00013698,2]
[423865394,1780461042000,-502.63310465,0.00013698,2]
[423865396,1780461042000,-500.60725444,0.00013698,2]
[423865410,1780461042000,-500.0,0.00013698,2]
[423865412,1780461042000,-500.0,0.00013698,2]
[423865414,1780461042000,-500.0,0.00013698,2]
[423865416,1780461042000,-500.0,0.00013698,2]
[423865417,1780461042000,-501.34499801,0.00013698,2]
[423865400,1780461042000,-500.0,0.00013698,2]
[423865404,1780461042000,-502.98743751,0.00013698,2]
[423865402,1780461042000,-438.2251422,0.00013698,2]
[423865398,1780461042000,-502.68678819,0.00013698,2]
[423865423,1780461042000,-500.518524,0.00013698,2]
[423865488,1780461042000,-501.01977851,0.00013972,2]
[423865440,1780461042000,-502.83020178,0.00013698,2]
[423865481,1780461042000,-500.58195449,0.00013972,2]
[423865565,1780461042000,-500.0,0.00013972,2]
[423865568,1780461042000,-500.0,0.00013972,2]
[423865571,1780461042000,-501.87087957,0.00013972,2]
[423865559,1780461042000,-500.0,0.00013972,2]
[423865562,1780461042000,-500.52027314,0.00013972,2]
[423865574,1780461042000,-500.0,0.00013972,2]
[423865577,1780461042000,-500.0,0.00013972,2]
[423865582,1780461042000,-500.0,0.00013972,2]
[423865584,1780461042000,-309.62180551,0.00013972,2]
[423865587,1780461042000,-211.14022913,0.00013972,2]
[423865580,1780461042000,-500.0,0.00013972,2]
[423865590,1780461042000,-500.0,0.00013972,2]
[423865593,1780461042000,-500.61407105,0.00013972,2]
[423865599,1780461042000,-503.15279632,0.00013972,2]
[423865601,1780461042000,-285.34268976,0.00013972,2]
[423865605,1780461042000,-500.0,0.00013972,2]
[423865607,1780461042000,-500.0,0.00013972,2]
[423865613,1780461042000,-500.0,0.00013972,2]
[423865603,1780461042000,-504.53435271,0.00013972,2]
[423865611,1780461042000,-502.44848833,0.00013972,2]
[423865609,1780461042000,-500.0,0.00013972,2]
[423865621,1780461042000,-501.57328794,0.00013972,2]
[423865617,1780461042000,-500.0,0.00013972,2]
[423865615,1780461042000,-501.19247836,0.00013972,2]
[423865618,1780461042000,-500.0,0.00013972,2]
[423865624,1780461042000,-502.51099253,0.00013972,2]
[423865623,1780461042000,-500.0,0.00013972,2]
[423865626,1780461042000,-500.0,0.00013972,2]
[423865486,1780461042000,-500.25900731,0.00013972,2]
[423865556,1780461042000,-503.7571162,0.00013972,2]
[423865553,1780461042000,-500.0,0.00013972,2]
[423865596,1780461042000,-502.18386137,0.00013972,2]
[423865548,1780461042000,-500.0,0.00013972,2]
[423865550,1780461042000,-500.0,0.00013972,2]
[423865498,1780461042000,-500.0,0.00013972,2]
[423865496,1780461042000,-500.0,0.00013972,2]
[423865490,1780461042000,-500.85559149,0.00013972,2]
[423865494,1780461042000,-500.90615019,0.00013972,2]
[423865492,1780461042000,-500.33977144,0.00013972,2]
[423865500,1780461042000,-500.0,0.00013972,2]
[423865502,1780461042000,-500.53400338,0.00013972,2]
[423865504,1780461042000,-500.65255913,0.00013972,2]
[423865506,1780461042000,-500.38151658,0.00013972,2]
[423865512,1780461042000,-445.74038047,0.00013972,2]
[423865514,1780461042000,-500.0,0.00013972,2]
[423865518,1780461042000,-500.0,0.00013972,2]
[423865516,1780461042000,-500.32890451,0.00013972,2]
[423865510,1780461042000,-500.32596213,0.00013972,2]
[423865508,1780461042000,-575.99870113,0.00013972,2]
[423865532,1780461042000,-500.0,0.00013972,2]
[423865534,1780461042000,-501.04255302,0.00013972,2]
[423865520,1780461042000,-500.0,0.00013972,2]
[423865536,1780461042000,-500.75275145,0.00013972,2]
[423865542,1780461042000,-501.30480761,0.00013972,2]
[423865546,1780461042000,-500.0,0.00013972,2]
[423865538,1780461042000,-500.88178795,0.00013972,2]
[423865628,1780461042000,-500.0,0.00013972,2]
[423865528,1780461042000,-500.49115145,0.00013972,2]
[423865540,1780461042000,-500.0,0.00013972,2]
[423865530,1780461042000,-546.85381814,0.00013972,2]
[423865526,1780461042000,-501.57128687,0.00013972,2]
[423865524,1780461042000,-500.0,0.00013972,2]
[423865522,1780461042000,-500.0,0.00013972,2]
[423865544,1780461042000,-183.1144073,0.00013972,2]
[423865663,1780461043000,-500.0,0.00013972,2]
[423865662,1780461043000,-500.56908023,0.00013972,2]
[423865666,1780461043000,-500.0,0.00013972,2]
[423865665,1780461043000,-500.0,0.00013972,2]
[423865671,1780461043000,-500.0,0.00013972,2]
[423865670,1780461043000,-500.0,0.00013972,2]
[423865680,1780461043000,-500.0,0.00013972,2]
[423865673,1780461043000,-500.0,0.00013972,2]
[423865674,1780461043000,-500.0,0.00013972,2]
[423865676,1780461043000,-500.0,0.00013972,2]
[423865668,1780461043000,-500.0,0.00013972,2]
[423865679,1780461043000,-500.0,0.00013972,2]
[423865660,1780461043000,-502.37321147,0.00013972,2]
[423865678,1780461043000,-544.75115447,0.00013972,2]
[423865658,1780461043000,-500.0,0.00013972,2]
[423865633,1780461043000,-500.0,0.00013972,2]
[423865649,1780461043000,-500.0,0.00013972,2]
[423865683,1780461043000,-504.77597969,0.00013972,2]
[423865634,1780461043000,-500.0,0.00013972,2]
[423865639,1780461043000,-500.0,0.00013972,2]
[423865632,1780461043000,-500.0,0.00013972,2]
[423865630,1780461043000,-500.0,0.00013972,2]
[423865638,1780461043000,-500.0,0.00013972,2]
[423865657,1780461043000,-500.0,0.00013972,2]
[423865641,1780461043000,-501.3584065,0.00013972,2]
[423865645,1780461043000,-500.0,0.00013972,2]
[423865647,1780461043000,-506.66812952,0.00013972,2]
[423865655,1780461043000,-500.0,0.00013972,2]
[423865654,1780461043000,-330.85000053,0.00013972,2]
[423865652,1780461043000,-500.0,0.00013972,2]
[423865650,1780461043000,-500.0,0.00013972,2]
[423865636,1780461043000,-500.0,0.00013972,2]
[423865682,1780461043000,-500.0,0.00013972,2]
[423865717,1780461043000,-500.0,0.00013972,2]
[423865688,1780461043000,-500.0,0.00013972,2]
[423865707,1780461043000,-500.0,0.00013972,2]
[423865712,1780461043000,-500.0,0.00013972,2]
[423865715,1780461043000,-500.0,0.00013972,2]
[423865727,1780461043000,-500.0,0.00013972,2]
[423865728,1780461043000,-500.62407722,0.00013972,2]
[423865736,1780461043000,-500.0,0.00013972,2]
[423865705,1780461043000,-501.55935881,0.00013972,2]
[423865734,1780461043000,-500.30930705,0.00013972,2]
[423865731,1780461043000,-500.0,0.00013972,2]
[423865742,1780461043000,-248.31609605,0.00013972,2]
[423865741,1780461043000,-500.0,0.00013972,2]
[423865739,1780461043000,-500.0,0.00013972,2]
[423865733,1780461043000,-500.0,0.00013972,2]
[423865687,1780461043000,-501.6618017,0.00013972,2]
[423865730,1780461043000,-500.0,0.00013972,2]
[423865711,1780461043000,-500.0,0.00013972,2]
[423865738,1780461043000,-550.35465854,0.00013972,2]
[423865708,1780461043000,-500.0,0.00013972,2]
[423865691,1780461043000,-500.0,0.00013972,2]
[423865720,1780461043000,-500.0,0.00013972,2]
[423865685,1780461043000,-500.0,0.00013972,2]
[423865690,1780461043000,-500.0,0.00013972,2]
[423865694,1780461043000,-500.0,0.00013972,2]
[423865696,1780461043000,-502.33253212,0.00013972,2]
[423865701,1780461043000,-500.0,0.00013972,2]
[423865698,1780461043000,-500.0,0.00013972,2]
[423865718,1780461043000,-500.0,0.00013972,2]
[423865725,1780461043000,-500.0,0.00013972,2]
[423865723,1780461043000,-500.0,0.00013972,2]
[423865714,1780461043000,-500.50041139,0.00013972,2]
[423865722,1780461043000,-500.0,0.00013972,2]
[423865703,1780461043000,-569.56,0.00013972,2]
[423865835,1780461044000,-500.0,0.00014246,2]
[423865844,1780461044000,-15.67755568,0.00014246,2]
[423865832,1780461044000,-268.67931089,0.00014246,2]
[423865840,1780461044000,-169.3,0.00014246,2]
[423865841,1780461044000,-500.0,0.00014246,2]
[423865838,1780461044000,-500.0,0.00014246,2]
[423865837,1780461044000,-500.0,0.00014246,2]
[423865846,1780461044000,-484.32244432,0.00014246,2]
[423865854,1780461044000,-500.0,0.00014246,2]
[423865848,1780461044000,-15.67994811,0.00014246,2]
[423865851,1780461044000,-484.32005189,0.00014246,2]
[423865874,1780461044000,-500.0,0.00014794,2]
[423865876,1780461044000,-166.95929883,0.00014794,2]
[423865879,1780461044000,-500.0,0.00015068,2]
[423865866,1780461044000,-500.0,0.0001452,2]
[423865843,1780461044000,-500.0,0.00014246,2]
[423865871,1780461044000,-162.48,0.00014654,2]
[423865859,1780461044000,-500.0,0.00014246,2]
[423865833,1780461044000,-500.0,0.00014246,2]
[423865796,1780461044000,-251.68390395,0.00013972,2]
[423865829,1780461044000,-500.74178242,0.00013698,2]
[423865868,1780461044000,-500.0,0.0001452,2]
[423865793,1780461044000,-501.88478548,0.00013698,2]
[423865794,1780461044000,-500.0,0.00013698,2]
[423865799,1780461044000,-500.0,0.00013972,2]
[423865797,1780461044000,-500.0,0.00013972,2]
[423865815,1780461044000,-502.033757,0.00013972,2]
[423865812,1780461044000,-500.0,0.00013972,2]
[423865818,1780461044000,-166.96776635,0.00014246,2]
[423865830,1780461044000,-333.03223365,0.00014246,2]
[423865800,1780461044000,-500.0,0.00013972,2]
[423865802,1780461044000,-500.0,0.00013972,2]
[423865808,1780461044000,-500.0,0.00013972,2]
[423865811,1780461044000,-500.0,0.00013972,2]
[423865809,1780461044000,-503.45060316,0.00013972,2]
[423865803,1780461044000,-500.0,0.00013972,2]
[423865806,1780461044000,-501.25667404,0.00013972,2]
[423865817,1780461044000,-500.0,0.00014246,2]
[423865805,1780461044000,-502.10512751,0.00013972,2]
[423865814,1780461044000,-500.0,0.00013972,2]
[423865886,1780461044000,-500.0,0.00015616,2]
[423865792,1780461044000,-5000.0,0.00013561,2]
[423865881,1780461044000,-500.0,0.00015068,2]
[423865894,1780461044000,-500.0,0.00016164,2]
[423865908,1780461044000,-160.0,0.00017677,2]
[423865912,1780461044000,-500.0,0.00017808,2]
[423865914,1780461044000,-312.86193133,0.00017937,2]
[423865922,1780461044000,-166.0,0.00018854,2]
[423865920,1780461044000,-617.27,0.0001863,2]
[423865915,1780461044000,-500.0,0.00018082,2]
[423865918,1780461044000,-500.0,0.0001863,2]
[423865910,1780461044000,-540.392,0.00017696,2]
[423865923,1780461044000,-172.0,0.00018854,2]
[423865929,1780461044000,-156.0,0.00018854,2]
[423865930,1780461044000,-162.82785968,0.00018854,2]
[423865925,1780461044000,-156.0,0.00018854,2]
[423865932,1780461044000,-185.0,0.00018875,2]
[423865934,1780461044000,-444.0,0.00018875,2]
[423865935,1780461044000,-617.27,0.00018904,2]
[423865937,1780461044000,-849.2761777,0.00019092,2]
[423865857,1780461044000,-500.0,0.00014246,2]
[423865927,1780461044000,-156.0,0.00018854,2]
[423865906,1780461044000,-500.0,0.00017534,2]
[423865917,1780461044000,-500.0,0.00018356,2]
[423865904,1780461044000,-500.0,0.0001726,2]
[423865864,1780461044000,-464.29261749,0.0001452,2]
[423865856,1780461044000,-500.0,0.00014246,2]
[423865860,1780461044000,-500.0,0.00014246,2]
[423865853,1780461044000,-500.0,0.00014246,2]
[423865878,1780461044000,-333.04070117,0.00014794,2]
[423865883,1780461044000,-500.0,0.00015342,2]
[423865872,1780461044000,-1000.0,0.00014752,2]
[423865884,1780461044000,-500.0,0.00015342,2]
[423865898,1780461044000,-500.0,0.00016438,2]
[423865863,1780461044000,-500.0,0.00014246,2]
[423865887,1780461044000,-500.0,0.00015616,2]
[423865899,1780461044000,-315.26000001,0.00016712,2]
[423865901,1780461044000,-500.0,0.00016712,2]
[423865889,1780461044000,-500.0,0.0001589,2]
[423865903,1780461044000,-500.0,0.00016986,2]
[423865892,1780461044000,-500.0,0.00016164,2]
[423865890,1780461044000,-500.0,0.0001589,2]
[423865869,1780461044000,-500.0,0.0001452,2]
[423865896,1780461044000,-500.0,0.00016438,2]
[423866629,1780461060000,100000.0,0.00023372,30]
[423866630,1780461110000,-152.0,0.00010759,7]
[423866631,1780461127000,-1261.17504327,0.00013291,2]
[423866632,1780461231000,41244.53954276,0.0002337,30]
[423866686,1780461482000,20000.0,0.00023362,120]
[423866687,1780461490000,20000.0,0.00023362,120]
[423866688,1780461498000,20000.0,0.00023362,120]
[423866689,1780461517000,20000.0,0.00023362,120]
[423866692,1780461710000,7919.6,0.00023358,120]
[423866738,1780462234000,-3751.52906364,9.635e-05,2]
[423866740,1780462234000,-327.99057547,9.635e-05,2]
[423866753,1780462234000,-4041.82460858,9.732e-05,2]
[423866761,1780462234000,-195.27195284,9.732e-05,2]
[423866747,1780462234000,-874.85473226,9.635e-05,2]
[423866751,1780462234000,-762.90343858,9.732e-05,2]
[423866763,1780462234000,-58.52546801,9.829e-05,2]
[423866749,1780462234000,-45.62562863,9.635e-05,2]
[423866815,1780462238000,-1141.47453199,9.829e-05,2]
[423866818,1780462238000,-104.49398067,0.00011465,2]
[423866816,1780462238000,-152.0,0.00010759,7]
[423866820,1780462238000,-1756.66571675,0.00011465,2]
[423866821,1780462238000,-151.6,0.00012,2]
[423866817,1780462238000,-1200.0,0.00010812,2]
[423866819,1780462238000,-3915.48408978,0.00011465,2]
[423866934,1780462239000,-500.0,0.00013698,2]
[423866869,1780462239000,-1664.02332297,0.00013697,2]
[423866874,1780462239000,-1664.02332297,0.00013697,2]
[423866886,1780462239000,-1664.02332297,0.00013697,2]
[423866875,1780462239000,-1664.02332297,0.00013697,2]
[423866888,1780462239000,-502.41624504,0.00013698,2]
[423866878,1780462239000,-1664.02332297,0.00013697,2]
[423866884,1780462239000,-1664.02332297,0.00013697,2]
[423866880,1780462239000,-1664.02332297,0.00013697,2]
[423866882,1780462239000,-1664.02332297,0.00013697,2]
[423866904,1780462239000,-500.0,0.00013698,2]
[423866902,1780462239000,-548.29676272,0.00013698,2]
[423866892,1780462239000,-500.0,0.00013698,2]
[423866890,1780462239000,-500.0,0.00013698,2]
[423866894,1780462239000,-502.26538081,0.00013698,2]
[423866871,1780462239000,-1664.02332297,0.00013697,2]
[423866900,1780462239000,-500.0,0.00013698,2]
[423866898,1780462239000,-500.0,0.00013698,2]
[423866906,1780462239000,-152.46540606,0.00013698,2]
[423866910,1780462239000,-500.0,0.00013698,2]
[423866916,1780462239000,-506.54330832,0.00013698,2]
[423866914,1780462239000,-338.27197255,0.00013698,2]
[423866912,1780462239000,-500.87886045,0.00013698,2]
[423866918,1780462239000,-327.41316345,0.00013698,2]
[423866930,1780462239000,-500.0,0.00013698,2]
[423866928,1780462239000,-500.0,0.00013698,2]
[423866932,1780462239000,-500.0,0.00013698,2]
[423866920,1780462239000,-504.83721007,0.00013698,2]
[423866908,1780462239000,-494.72097139,0.00013698,2]
[423866896,1780462239000,-501.33597198,0.00013698,2]
[423866858,1780462239000,-1664.02332297,0.00013697,2]
[423866856,1780462239000,-1664.02332297,0.00013697,2]
[423866826,1780462239000,-195.58474377,0.00013695,2]
[423866825,1780462239000,-500.0,0.00013695,2]
[423866823,1780462239000,-157.25860506,0.00013598,2]
[423866822,1780462239000,-1026.90095977,0.00013597,2]
[423866824,1780462239000,-500.0,0.00013695,2]
[423866828,1780462239000,-500.0,0.00013695,2]
[423866838,1780462239000,-1664.02332297,0.00013697,2]
[423866837,1780462239000,-1664.02332297,0.00013697,2]
[423866839,1780462239000,-1664.02332297,0.00013697,2]
[423866836,1780462239000,-1664.02332297,0.00013697,2]
[423866831,1780462239000,-500.0,0.00013695,2]
[423866829,1780462239000,-335.22971175,0.00013695,2]
[423866833,1780462239000,-300.19407878,0.00013695,2]
[423866832,1780462239000,-500.0,0.00013695,2]
[423866827,1780462239000,-500.0,0.00013695,2]
[423866830,1780462239000,-500.0,0.00013695,2]
[423866834,1780462239000,-479.61065671,0.00013697,2]
[423866835,1780462239000,-1664.02332297,0.00013697,2]
[423866842,1780462239000,-1664.02332297,0.00013697,2]
[423866840,1780462239000,-1664.02332297,0.00013697,2]
[423866847,1780462239000,-1664.02332297,0.00013697,2]
[423866843,1780462239000,-1664.02332297,0.00013697,2]
[423866845,1780462239000,-1664.02332297,0.00013697,2]
[423866849,1780462239000,-1664.02332297,0.00013697,2]
[423866860,1780462239000,-1664.02332297,0.00013697,2]
[423866853,1780462239000,-1664.02332297,0.00013697,2]
[423866851,1780462239000,-1664.02332297,0.00013697,2]
[423866862,1780462239000,-1664.02332297,0.00013697,2]
[423866855,1780462239000,-1664.02332297,0.00013697,2]
[423866864,1780462239000,-1664.02332297,0.00013697,2]
[423866936,1780462239000,-503.18883211,0.00013698,2]
[423866938,1780462239000,-267.24203126,0.00013698,2]
[423866922,1780462239000,-249.09998126,0.00013698,2]
[423867005,1780462239000,-500.0,0.00013698,2]
[423867007,1780462239000,-500.0,0.00013698,2]
[423867022,1780462239000,-500.75489992,0.00013698,2]
[423867018,1780462239000,-500.61879089,0.00013698,2]
[423867009,1780462239000,-275.36851952,0.00013698,2]
[423867014,1780462239000,-362.17548523,0.00013698,2]
[423867011,1780462239000,-500.0,0.00013698,2]
[423867020,1780462239000,-500.0,0.00013698,2]
[423867016,1780462239000,-500.0,0.00013698,2]
[423867013,1780462239000,-500.0,0.00013698,2]
[423867035,1780462239000,-500.0,0.00013698,2]
[423867037,1780462239000,-500.0,0.00013698,2]
[423867039,1780462239000,-246.30289034,0.00013698,2]
[423867024,1780462239000,-500.0,0.00013698,2]
[423867041,1780462239000,-500.0,0.00013698,2]
[423867029,1780462239000,-500.0,0.00013698,2]
[423867047,1780462239000,-386.01433159,0.00013698,2]
[423867045,1780462239000,-500.0,0.00013698,2]
[423867028,1780462239000,-500.0,0.00013698,2]
[423867031,1780462239000,-500.0,0.00013698,2]
[423867033,1780462239000,-500.0,0.00013698,2]
[423867043,1780462239000,-500.0,0.00013698,2]
[423867026,1780462239000,-500.43350853,0.00013698,2]
[423867051,1780462239000,-500.0,0.00013698,2]
[423867053,1780462239000,-500.0,0.00013698,2]
[423867059,1780462239000,-501.39759113,0.00013698,2]
[423867055,1780462239000,-500.0,0.00013698,2]
[423867049,1780462239000,-500.0,0.00013698,2]
[423866924,1780462239000,-500.0,0.00013698,2]
[423867003,1780462239000,-500.0,0.00013698,2]
[423866999,1780462239000,-500.35829912,0.00013698,2]
[423867057,1780462239000,-500.0,0.00013698,2]
[423866997,1780462239000,-500.0,0.00013698,2]
[423867001,1780462239000,-500.6296141,0.00013698,2]